bitfinex/quotes_BTCUSD_20250212
["timestamp","ask_amount","ask_price","bid_price","bid_amount"]
[1739331932093,0.156788,95671.0,95660.0,0.32429554]
[1739331932717,0.209044,95674.0,95660.0,0.14696003]
[1739331932834,0.1255,95675.0,95663.0,0.02515462]
[1739331933187,0.156787,95671.0,95663.0,0.0001066]
[1739331933416,0.04921157,95670.0,95663.0,0.0001066]
[1739331933625,0.156791,95669.0,95663.0,0.0001066]
[1739331933792,0.04921157,95670.0,95663.0,0.0001066]
[1739331934188,0.15679,95670.0,95663.0,0.0001066]
[1739331934668,0.156787,95671.0,95663.0,0.0001066]
[1739331934901,0.00078474,95673.0,95663.0,0.0001066]
[1739331935188,0.004,95670.0,95663.0,0.0001066]
[1739331936483,0.156786,95672.0,95663.0,0.0001066]
[1739331936684,0.2059189,95672.0,95663.0,0.0001066]
[1739331937724,0.0491329,95672.0,95663.0,0.0001066]
[1739331937936,0.1255,95675.0,95663.0,0.0001066]
[1739331937937,0.236898,95664.0,95663.0,0.0001066]
[1739331938366,0.38480165,95664.0,95663.0,0.0001066]
[1739331939259,0.71040165,95664.0,95663.0,0.0001066]
[1739331939933,0.71240165,95664.0,95663.0,0.0001066]
[1739331940153,0.8129053,95664.0,95663.0,0.0001066]
[1739331940568,0.8149053,95664.0,95663.0,0.0001066]
[1739331941009,0.8249053,95664.0,95663.0,0.0001066]
[1739331941454,0.8149053,95664.0,95663.0,0.0001066]
[1739331941660,0.8269053,95664.0,95663.0,0.0001066]
[1739331941871,0.8249053,95664.0,95663.0,0.0001066]
[1739331942070,0.8279053,95664.0,95663.0,0.0001066]
[1739331942488,0.9779053,95664.0,95663.0,0.0001066]
[1739331943277,0.6523053,95664.0,95663.0,0.0001066]
[1739331943482,0.6523053,95664.0,95630.0,0.0060941]
[1739331943483,0.156851,95632.0,95630.0,0.0060941]
[1739331943739,0.156848,95634.0,95630.0,0.0060941]
[1739331943947,0.22769444,95633.0,95630.0,0.0060941]
[1739331944143,0.156851,95632.0,95630.0,0.0060941]
[1739331944874,0.157851,95632.0,95630.0,0.0060941]
[1739331945078,0.158851,95632.0,95630.0,0.0060941]
[1739331945304,0.001,95632.0,95630.0,0.0060941]
[1739331945879,0.156839,95640.0,95630.0,0.0060941]
[1739331946082,0.0824,95649.0,95630.0,0.15305413]
[1739331946289,0.004,95632.0,95630.0,0.15305413]
[1739331946728,0.156838,95640.0,95630.0,0.0060941]
[1739331946867,0.31160565,95648.0,95630.0,0.15305413]
[1739331946868,0.209106,95646.0,95630.0,0.15305413]
[1739331947067,0.006,95640.0,95636.0,0.14696003]
[1739331947331,0.006,95640.0,95630.0,0.02716073]
[1739331947495,0.15684,95639.0,95626.0,0.0001066]
[1739331947708,0.15684,95639.0,95626.0,0.1569666]
[1739331947910,0.156847,95634.0,95626.0,0.0001066]
[1739331948124,0.365947,95642.0,95626.0,0.0001066]
[1739331948440,0.209129,95635.0,95626.0,0.0001066]
[1739331948659,0.156847,95634.0,95626.0,0.0001066]
[1739331948873,0.10250365,95642.0,95626.0,0.0001066]
[1739331949094,0.156845,95636.0,95626.0,0.0001066]
[1739331949876,0.10328839,95642.0,95630.0,0.0001066]
[1739331950085,0.10828839,95642.0,95630.0,0.14706663]
[1739331950541,0.156845,95636.0,95630.0,0.14706663]
[1739331950741,0.156834,95642.0,95630.0,0.14706663]
[1739331950911,0.001,95636.0,95632.0,0.15685]
[1739331951407,0.156833,95643.0,95630.0,0.0001066]
[1739331951532,0.10250365,95649.0,95630.0,0.0001066]
[1739331951738,0.001,95636.0,95632.0,0.156851]
[1739331952163,0.001,95636.0,95630.0,0.0001066]
[1739331952409,0.001,95636.0,95635.0,0.156846]
[1739331952540,0.001,95636.0,95635.0,0.238146]
[1739331952740,0.001,95636.0,95635.0,0.36364965]
[1739331953588,0.08380166,95657.0,95647.0,0.156825]
[1739331953835,0.08380166,95657.0,95648.0,0.156824]
[1739331954071,0.156797,95665.0,95654.0,0.156813]
[1739331954290,0.1568,95663.0,95655.0,0.14696003]
[1739331954495,0.209058,95667.0,95655.0,0.14696003]
[1739331954710,0.0453,95669.0,95655.0,0.14696003]
[1739331954924,0.002,95657.0,95655.0,0.14696003]
[1739331955351,0.156798,95664.0,95655.0,0.14696003]
[1739331955546,0.15475475,95664.0,95655.0,0.14696003]
[1739331955992,0.15475475,95664.0,95655.0,0.14796003]
[1739331956314,0.156801,95663.0,95655.0,0.14796003]
[1739331956747,0.15425088,95662.0,95655.0,0.14796003]
[1739331956955,0.15273434,95662.0,95655.0,0.14796003]
[1739331957159,0.209056,95668.0,95655.0,0.14796003]
[1739331957332,0.1568,95663.0,95655.0,0.14796003]
[1739331957734,0.1568,95663.0,95655.0,0.14696003]
[1739331958040,0.001,95662.0,95655.0,0.14696003]
[1739331958358,0.156807,95659.0,95655.0,0.14696003]
[1739331958578,0.156807,95659.0,95649.0,0.14696003]
[1739331958848,0.20908,95657.0,95647.0,0.02459524]
[1739331959061,0.156818,95652.0,95647.0,0.02459524]
[1739331959281,0.0817,95657.0,95645.0,0.156829]
[1739331959509,0.156811,95656.0,95643.0,0.156832]
[1739331959734,0.11474533,95657.0,95647.0,0.14696003]
[1739331959989,0.156816,95654.0,95647.0,0.14696003]
[1739331960205,0.156816,95654.0,95644.0,0.156831]
[1739331960448,0.209082,95656.0,95644.0,0.156831]
[1739331960678,0.156817,95653.0,95643.0,0.156833]
[1739331961140,0.209084,95655.0,95640.0,0.19240716]
[1739331961369,0.0509862,95654.0,95644.0,0.156831]
[1739331961783,0.0499862,95654.0,95644.0,0.156831]
[1739331962247,0.002,95653.0,95644.0,0.03083]
[1739331962486,0.002,95653.0,95644.0,0.15683]
[1739331962918,0.002,95653.0,95644.0,0.156831]
[1739331963536,0.156822,95650.0,95643.0,0.14696003]
[1739331963765,0.002,95654.0,95640.0,0.02441048]
[1739331963970,0.002,95654.0,95630.0,0.14706663]
[1739331963971,0.23488839,95653.0,95631.0,0.02134031]
[1739331964185,0.15684,95639.0,95636.0,0.024811]
[1739331964410,0.156838,95641.0,95631.0,0.02134031]
[1739331964631,0.209115,95642.0,95631.0,0.02134031]
[1739331964862,0.209093,95651.0,95631.0,0.02134031]
[1739331965087,0.156837,95641.0,95631.0,0.02134031]
[1739331965323,0.001,95639.0,95631.0,0.02134031]
[1739331965577,0.209121,95638.0,95631.0,0.02134031]
[1739331965817,0.156846,95636.0,95631.0,0.02134031]
[1739331966531,0.156852,95631.0,95630.0,0.0001066]
[1739331966765,0.1725372,95631.0,95630.0,0.0001066]
[1739331967488,0.0499,95633.0,95630.0,0.0001066]
[1739331967978,0.002,95636.0,95630.0,0.0001066]
[1739331968112,0.001,95636.0,95630.0,0.0001066]
[1739331968334,0.001,95636.0,95632.0,0.15685]
[1739331968544,0.001,95636.0,95630.0,0.0001066]
[1739331969162,0.156838,95640.0,95630.0,0.0001066]
[1739331969787,0.156835,95642.0,95630.0,0.1569596]
[1739331970003,0.156837,95641.0,95632.0,0.14696003]
[1739331970621,0.156838,95640.0,95632.0,0.14696003]
[1739331970817,0.160838,95640.0,95632.0,0.14696003]
[1739331971277,0.156838,95640.0,95632.0,0.14696003]
[1739331971666,0.15684,95639.0,95632.0,0.14696003]
[1739331972305,0.15684,95639.0,95632.0,0.02096003]
[1739331973159,0.002,95640.0,95632.0,0.02096003]
[1739331973361,0.002,95640.0,95630.0,0.0001066]
[1739331973565,0.156852,95631.0,95630.0,0.0001066]
[1739331974197,0.15763674,95631.0,95630.0,0.0001066]
[1739331974840,0.26014039,95631.0,95630.0,0.0001066]
[1739331975044,0.25935565,95631.0,95630.0,0.0001066]
[1739331975251,0.34027752,95631.0,95630.0,0.0001066]
[1739331976503,0.34327752,95631.0,95630.0,0.0001066]
[1739331976710,0.34727752,95631.0,95630.0,0.0001066]
[1739331977139,0.34327752,95631.0,95630.0,0.0001066]
[1739331977353,0.19842552,95631.0,95610.0,0.14696003]
[1739331977554,0.156876,95617.0,95610.0,0.02477071]
[1739331977765,0.05470019,95630.0,95610.0,0.02477071]
[1739331977969,0.156857,95628.0,95600.0,0.0001065]
[1739331978147,0.156892,95607.0,95600.0,0.0001065]
[1739331978304,0.0802,95615.0,95600.0,0.0001065]
[1739331978513,0.156895,95606.0,95600.0,0.0001065]
[1739331978947,0.209184,95610.0,95600.0,0.02508096]
[1739331979153,0.156893,95607.0,95600.0,0.0001065]
[1739331979379,0.156891,95608.0,95600.0,0.0001065]
[1739331979789,0.156882,95613.0,95600.0,0.0001065]
[1739331980471,0.001,95608.0,95604.0,0.156896]
[1739331980687,0.001,95608.0,95605.0,0.156894]
[1739331981122,0.209159,95621.0,95603.0,0.14696003]
[1739331981324,0.001,95613.0,95610.0,0.14696003]
[1739331981642,0.001,95613.0,95605.0,0.156894]
[1739331982051,0.001,95613.0,95604.0,0.15794186]
[1739331982464,0.001,95613.0,95604.0,0.156896]
[1739331982642,0.156877,95616.0,95604.0,0.156896]
[1739331983055,0.001,95608.0,95604.0,0.156896]
[1739331983283,0.001,95608.0,95606.0,0.156892]
[1739331983493,0.001,95608.0,95607.0,0.00104572]
[1739331983697,0.001,95608.0,95607.0,0.12654937]
[1739331984089,0.156852,95632.0,95620.0,0.156869]
[1739331984318,0.156852,95632.0,95620.0,0.30382903]
[1739331984688,0.156854,95630.0,95620.0,0.14696003]
[1739331984903,0.156854,95630.0,95620.0,0.14800572]
[1739331985566,0.156854,95630.0,95620.0,0.14696003]
[1739331985785,0.156852,95632.0,95620.0,0.14800572]
[1739331985983,0.209132,95633.0,95620.0,0.30487572]
[1739331986184,0.156853,95631.0,95620.0,0.30487572]
[1739331986554,0.08380166,95646.0,95620.0,0.14800572]
[1739331986789,0.156849,95634.0,95630.0,0.14696003]
[1739331987021,0.15685,95633.0,95624.0,0.14696003]
[1739331987254,0.15685,95633.0,95624.0,0.02096003]
[1739331987491,0.15685,95633.0,95624.0,0.04142133]
[1739331987722,0.006,95631.0,95624.0,0.04142133]
[1739331988347,0.00022408,95630.0,95624.0,0.04142133]
[1739331989595,0.00022408,95630.0,95625.0,0.00104563]
[1739331989796,0.00022408,95630.0,95625.0,0.15790663]
[1739331990334,0.00022408,95630.0,95626.0,0.15686]
[1739331990569,0.00022408,95630.0,95626.0,0.00104563]
[1739331990821,0.00122408,95630.0,95628.0,0.156857]
[1739331991031,0.00122408,95630.0,95627.0,0.00104564]
[1739331991032,0.00122408,95630.0,95629.0,0.00104557]
[1739331991234,0.00122408,95630.0,95629.0,0.15790157]
[1739331991938,0.00022408,95630.0,95629.0,0.15790157]
[1739331992342,0.00122408,95630.0,95627.0,0.209144]
[1739331992564,0.00122408,95630.0,95628.0,0.00078364]
[1739331992768,0.00022408,95630.0,95629.0,0.156856]
[1739331992971,0.00022408,95630.0,95629.0,0.15763965]
[1739331993161,0.00122408,95630.0,95629.0,0.16063965]
[1739331993392,0.00122408,95630.0,95629.0,0.003]
[1739331993640,0.00022408,95630.0,95627.0,0.209144]
[1739331993869,0.00122408,95630.0,95628.0,0.003]
[1739331995283,0.00122408,95630.0,95627.0,0.209144]
[1739331995284,0.00022408,95630.0,95627.0,0.209144]
[1739331995558,0.00122408,95630.0,95629.0,0.003]
[1739331995982,0.00022408,95630.0,95628.0,0.156857]
[1739331996187,0.00122408,95630.0,95628.0,0.159857]
[1739331996704,0.00122408,95630.0,95628.0,0.003]
[1739331996901,0.00022408,95630.0,95627.0,0.156859]
[1739331997164,0.001,95630.0,95629.0,0.003]
[1739331998345,0.20912,95639.0,95628.0,0.156856]
[1739331998346,0.156843,95637.0,95628.0,0.156856]
[1739331998483,0.001,95630.0,95628.0,0.159856]
[1739331999091,0.156844,95636.0,95628.0,0.156856]
[1739331999382,0.001,95630.0,95629.0,0.003]
[1739331999762,0.156844,95636.0,95628.0,0.156856]
[1739332000183,0.001,95630.0,95628.0,0.159856]
[1739332000390,0.001,95630.0,95628.0,0.003]
[1739332000598,0.00122387,95630.0,95628.0,0.159857]
[1739332001246,0.00122387,95630.0,95629.0,0.156856]
[1739332001655,0.00122387,95630.0,95628.0,0.002]
[1739332001858,0.00022387,95630.0,95627.0,0.1569646]
[1739332002064,0.00022387,95630.0,95628.0,0.159857]
[1739332002238,0.00022387,95630.0,95629.0,0.156856]
[1739332002657,0.00022387,95630.0,95629.0,0.160856]
[1739332002861,0.00122387,95630.0,95629.0,0.156856]
[1739332003212,0.00022387,95630.0,95629.0,0.156856]
[1739332003683,0.00122387,95630.0,95629.0,0.162856]
[1739332004177,0.00122387,95630.0,95629.0,0.28914328]
[1739332004458,0.00122387,95630.0,95629.0,0.28835965]
[1739332004753,0.00122387,95630.0,95629.0,0.29135965]
[1739332005103,0.00122387,95630.0,95629.0,0.28835965]
[1739332005314,0.00122387,95630.0,95629.0,0.29135965]
[1739332005788,0.00122387,95630.0,95629.0,0.44135965]
[1739332005955,0.00122387,95630.0,95629.0,0.51865965]
[1739332006607,0.00022387,95630.0,95629.0,0.51265965]
[1739332006990,0.00122387,95630.0,95629.0,0.87358912]
[1739332007331,0.0453,95662.0,95652.0,0.156818]
[1739332007534,0.0453,95662.0,95655.0,0.156813]
[1739332007535,0.08380166,95656.0,95655.0,0.156813]
[1739332007737,0.0453,95662.0,95657.0,0.15681]
[1739332008570,0.0453,95662.0,95657.0,0.14666846]
[1739332009786,0.00522408,95658.0,95657.0,0.14666846]
[1739332011043,0.00522408,95658.0,95657.0,0.14866846]
[1739332011292,0.00022408,95658.0,95657.0,0.14866846]
[1739332011747,0.00022408,95658.0,95657.0,0.14666846]
[1739332012158,0.00022408,95658.0,95657.0,0.14966846]
[1739332012488,0.00022408,95658.0,95657.0,0.004]
[1739332013034,0.00022408,95658.0,95657.0,0.16081]
[1739332013239,0.00022408,95658.0,95657.0,0.18238316]
[1739332014031,0.04344869,95662.0,95657.0,0.02349941]
[1739332014441,0.04344869,95662.0,95658.0,0.156808]
[1739332015281,0.04544869,95662.0,95657.0,0.02257316]
[1739332015483,0.156808,95658.0,95657.0,0.02257316]
[1739332015870,0.156808,95658.0,95657.0,0.02157316]
[1739332016058,0.156808,95658.0,95653.0,0.0001065]
[1739332016455,0.04544869,95662.0,95653.0,0.0001065]
[1739332016653,0.209073,95660.0,95653.0,0.0001065]
[1739332016913,0.156808,95659.0,95653.0,0.0001065]
[1739332017122,0.156808,95658.0,95653.0,0.0001065]
[1739332017525,0.04344869,95662.0,95653.0,0.0001065]
[1739332017726,0.04344869,95662.0,95657.0,0.001]
[1739332017926,0.156807,95659.0,95657.0,0.001]
[1739332018141,0.156808,95658.0,95653.0,0.02155005]
[1739332018344,0.209073,95660.0,95653.0,0.02155005]
[1739332018546,0.156813,95656.0,95653.0,0.02355005]
[1739332018749,0.365888,95658.0,95653.0,0.02155005]
[1739332019125,0.365888,95658.0,95657.0,0.001]
[1739332019582,0.15681,95658.0,95657.0,0.001]
[1739332020332,0.004,95659.0,95653.0,0.02155005]
[1739332020333,0.00530672,95659.0,95653.0,0.02155005]
[1739332020508,0.156812,95656.0,95653.0,0.02155005]
[1739332020999,0.0808,95658.0,95653.0,0.02355005]
[1739332021241,0.0788,95658.0,95653.0,0.02355005]
[1739332021472,0.0788,95670.0,95660.0,0.156804]
[1739332021718,0.156795,95667.0,95660.0,0.30376403]
[1739332021959,0.0788,95670.0,95663.0,0.156799]
[1739332022189,0.0788,95670.0,95660.0,0.35603103]
[1739332022190,0.15679,95669.0,95662.0,0.156801]
[1739332022422,0.0788,95670.0,95660.0,0.35603103]
[1739332022640,0.156792,95668.0,95661.0,0.156803]
[1739332023341,0.287852,95670.0,95660.0,0.30376503]
[1739332023565,0.156792,95668.0,95660.0,0.14696003]
[1739332023770,0.0788,95670.0,95661.0,0.156802]
[1739332023969,0.156791,95669.0,95660.0,0.14696003]
[1739332024175,0.156792,95668.0,95663.0,0.001]
[1739332024594,0.156792,95668.0,95661.0,0.156803]
[1739332025022,0.006,95668.0,95660.0,0.14796003]
[1739332025374,0.001,95669.0,95664.0,0.156798]
[1739332025575,0.006,95668.0,95664.0,0.156798]
[1739332026783,0.007,95668.0,95664.0,0.156798]
[1739332027219,0.007,95668.0,95663.0,0.001]
[1739332027414,0.001,95668.0,95661.0,0.209071]
[1739332027644,0.006,95668.0,95663.0,0.156799]
[1739332027852,0.007,95668.0,95663.0,0.156799]
[1739332028052,0.001,95668.0,95664.0,0.156798]
[1739332028252,0.0788,95670.0,95664.0,0.156798]
[1739332028478,0.007,95668.0,95663.0,0.1578]
[1739332028889,0.235588,95670.0,95663.0,0.1568]
[1739332029290,0.006,95668.0,95664.0,0.001]
[1739332029898,0.006,95668.0,95664.0,0.157797]
[1739332030301,0.007,95668.0,95664.0,0.157797]
[1739332030502,0.006,95668.0,95664.0,0.001]
[1739332030872,0.001,95668.0,95664.0,0.156798]
[1739332031329,0.001,95668.0,95663.0,0.1578]
[1739332031773,0.001,95668.0,95663.0,0.1568]
[1739332031984,0.001,95668.0,95662.0,0.02226355]
[1739332032219,0.128,95682.0,95664.0,0.31334948]
[1739332032490,0.15677,95681.0,95674.0,0.156782]
[1739332032724,0.128,95682.0,95664.0,0.31156665]
[1739332032964,0.128,95682.0,95664.0,0.10250365]
[1739332033203,0.156776,95678.0,95671.0,0.156786]
[1739332033428,0.156774,95679.0,95672.0,0.156785]
[1739332034151,0.156776,95678.0,95669.0,0.209052]
[1739332034374,0.156776,95678.0,95671.0,0.156787]
[1739332035056,0.20903,95680.0,95669.0,0.209052]
[1739332035277,0.156774,95679.0,95671.0,0.156787]
[1739332035475,0.156774,95679.0,95672.0,0.001]
[1739332035699,0.20903,95680.0,95672.0,0.157785]
[1739332035896,0.156775,95678.0,95672.0,0.157785]
[1739332036351,0.156777,95677.0,95672.0,0.001]
[1739332036689,0.156777,95677.0,95671.0,0.160787]
[1739332036892,0.156777,95677.0,95671.0,0.159787]
[1739332037102,0.156777,95677.0,95672.0,0.006]
[1739332037317,0.00022366,95678.0,95672.0,0.162785]
[1739332037477,0.15699966,95678.0,95672.0,0.01]
[1739332037679,0.156778,95677.0,95672.0,0.01]
[1739332037883,0.00022366,95678.0,95672.0,0.162784]
[1739332038085,0.15699966,95678.0,95672.0,0.162784]
[1739332038475,0.156777,95677.0,95671.0,0.17892973]
[1739332039110,0.15699866,95678.0,95672.0,0.156785]
[1739332039334,0.00022366,95678.0,95671.0,0.005]
[1739332039717,0.00022366,95678.0,95672.0,0.001]
[1739332039916,0.156779,95676.0,95672.0,0.001]
[1739332040128,0.156779,95676.0,95672.0,0.005]
[1739332040346,0.156779,95676.0,95672.0,0.009]
[1739332040586,0.156779,95676.0,95672.0,0.005]
[1739332040725,0.15626717,95676.0,95672.0,0.005]
[1739332040928,0.15626717,95676.0,95672.0,0.009]
[1739332041124,0.15626717,95676.0,95672.0,0.005]
[1739332041335,0.20904,95676.0,95669.0,0.02208291]
[1739332041548,0.156779,95676.0,95672.0,0.004]
[1739332041950,0.156779,95676.0,95672.0,0.009]
[1739332042160,0.15699966,95678.0,95672.0,0.165784]
[1739332042439,0.156756,95690.0,95682.0,0.156767]
[1739332042650,0.209006,95691.0,95680.0,0.14696003]
[1739332042843,0.156761,95687.0,95680.0,0.14696003]
[1739332043251,0.156761,95687.0,95680.0,0.30373103]
[1739332043512,0.25425965,95692.0,95680.0,0.14696003]
[1739332043653,0.156763,95686.0,95680.0,0.30373103]
[1739332044257,0.156761,95687.0,95681.0,0.15677]
[1739332045432,0.25425965,95692.0,95680.0,0.14796003]
[1739332045653,0.156756,95690.0,95684.0,0.156765]
[1739332045896,0.156754,95691.0,95680.0,0.32450745]
[1739332046118,0.158762,95687.0,95680.0,0.32450745]
[1739332046335,0.002,95687.0,95681.0,0.02058486]
[1739332046599,0.156762,95686.0,95681.0,0.02058486]
[1739332046996,0.156762,95686.0,95681.0,0.02158486]
[1739332047213,0.004,95690.0,95681.0,0.02158486]
[1739332047416,0.004,95690.0,95680.0,0.06232231]
[1739332047417,0.156758,95689.0,95680.0,0.06232231]
[1739332047569,0.156758,95689.0,95682.0,0.156768]
[1739332047775,0.004,95690.0,95682.0,0.156768]
[1739332047982,0.156759,95688.0,95682.0,0.17788465]
[1739332048184,0.156757,95690.0,95682.0,0.02111665]
[1739332048385,0.002,95687.0,95683.0,0.156767]
[1739332048598,0.158762,95687.0,95682.0,0.02111665]
[1739332048997,0.156762,95687.0,95682.0,0.02111665]
[1739332049601,0.002,95688.0,95682.0,0.02111665]
[1739332049856,0.156763,95686.0,95680.0,0.06232231]
[1739332050065,0.156763,95686.0,95680.0,0.21909331]
[1739332050543,0.156763,95686.0,95682.0,0.001]
[1739332050763,0.00222366,95687.0,95681.0,0.02044877]
[1739332051013,0.00222366,95687.0,95682.0,0.001]
[1739332051263,0.15898466,95687.0,95681.0,0.17721877]
[1739332051482,0.15698466,95687.0,95681.0,0.17721877]
[1739332052170,0.00022366,95687.0,95681.0,0.02044877]
[1739332052511,0.00022366,95687.0,95682.0,0.15755022]
[1739332052715,0.00022366,95687.0,95682.0,0.156768]
[1739332053187,0.00022366,95687.0,95681.0,0.02244877]
[1739332053384,0.156762,95686.0,95681.0,0.02044877]
[1739332053607,0.156762,95686.0,95682.0,0.002]
[1739332054436,0.15698466,95687.0,95681.0,0.17721877]
[1739332054642,0.00022366,95687.0,95681.0,0.02044877]
[1739332054889,0.00022366,95687.0,95682.0,0.002]
[1739332055338,0.00022366,95687.0,95683.0,0.156767]
[1739332055545,0.15698466,95687.0,95682.0,0.002]
[1739332055750,0.00022366,95687.0,95682.0,0.002]
[1739332056180,0.156764,95686.0,95681.0,0.02044877]
[1739332056353,0.156762,95686.0,95681.0,0.02244877]
[1739332056755,0.156762,95686.0,95681.0,0.02044877]
[1739332056973,0.156762,95686.0,95682.0,0.002]
[1739332057390,0.156764,95685.0,95681.0,0.02044877]
[1739332057623,0.156764,95685.0,95681.0,0.02244877]
[1739332057777,0.156764,95685.0,95681.0,0.02044877]
[1739332058704,0.156764,95685.0,95681.0,0.02144877]
[1739332059346,0.156764,95685.0,95682.0,0.002]
[1739332059497,0.156764,95685.0,95681.0,0.02144877]
[1739332060046,0.156764,95685.0,95681.0,0.02344877]
[1739332060252,0.156764,95685.0,95681.0,0.02144877]
[1739332060572,0.156764,95685.0,95682.0,0.002]
[1739332060776,0.156764,95685.0,95681.0,0.02044877]
[1739332060980,0.156764,95685.0,95682.0,0.001]
[1739332061871,0.20923966,95687.0,95681.0,0.02244877]
[1739332062033,0.156763,95686.0,95681.0,0.02344877]
[1739332062238,0.209005,95692.0,95681.0,0.02344877]
[1739332062434,0.00022387,95695.0,95681.0,0.06560678]
[1739332062779,0.156764,95685.0,95682.0,0.001]
[1739332063012,0.156766,95684.0,95682.0,0.001]
[1739332063257,0.156767,95683.0,95682.0,0.001]
[1739332063463,0.156767,95683.0,95682.0,0.003]
[1739332064104,0.0785,95684.0,95670.0,0.156787]
[1739332064330,0.156788,95670.0,95669.0,0.09343937]
[1739332064562,0.00130658,95682.0,95670.0,0.01966431]
[1739332064771,0.15677,95681.0,95680.0,0.0001065]
[1739332065081,0.365797,95681.0,95680.0,0.0001065]
[1739332066019,0.368797,95681.0,95680.0,0.0001065]
[1739332066761,0.370797,95681.0,95680.0,0.0001065]
[1739332067192,0.367797,95681.0,95680.0,0.0001065]
[1739332067390,0.375797,95681.0,95680.0,0.0011065]
[1739332068172,0.01,95681.0,95680.0,0.0011065]
[1739332068376,0.16677,95681.0,95680.0,0.0011065]
[1739332068583,0.0785,95684.0,95680.0,0.0011065]
[1739332068769,0.15677,95682.0,95680.0,0.0011065]
[1739332069212,0.156767,95683.0,95680.0,0.0011065]
[1739332069410,0.156769,95682.0,95680.0,0.0011065]
[1739332069617,0.15677,95681.0,95680.0,0.0011065]
[1739332070409,0.15677,95681.0,95680.0,0.0001065]
[1739332070847,0.003,95681.0,95680.0,0.0001065]
[1739332071060,0.0785,95684.0,95680.0,0.0001065]
[1739332071061,0.06548801,95684.0,95683.0,0.156767]
[1739332071260,0.06548801,95684.0,95683.0,0.30820837]
[1739332071261,0.03126172,95684.0,95683.0,0.30820837]
[1739332071452,0.012244,95684.0,95683.0,0.30820837]
[1739332073110,0.012244,95684.0,95683.0,0.31320837]
[1739332073330,0.012244,95684.0,95683.0,0.46320837]
[1739332073503,0.012244,95684.0,95683.0,0.46820837]
[1739332073705,0.012244,95684.0,95683.0,0.47420837]
[1739332073871,0.013244,95684.0,95683.0,0.46420837]
[1739332074290,0.013244,95684.0,95683.0,0.47620837]
[1739332075119,0.001,95684.0,95683.0,0.47620837]
[1739332075324,0.0493,95685.0,95684.0,0.329766]
[1739332075664,0.00022366,95686.0,95684.0,0.32395931]
[1739332075980,0.00022366,95686.0,95685.0,0.43304959]
[1739332076173,0.00022366,95686.0,95685.0,0.43226765]
[1739332078388,0.00022366,95686.0,95685.0,0.44226765]
[1739332078842,0.00022366,95686.0,95685.0,0.43226765]
[1739332079040,0.00022366,95686.0,95685.0,0.47320537]
[1739332079272,0.00022366,95686.0,95685.0,0.46820537]
[1739332079478,0.00022366,95686.0,95685.0,0.316764]
[1739332079685,0.00022366,95686.0,95685.0,0.321764]
[1739332079893,0.00022366,95686.0,95685.0,0.316764]
[1739332080116,0.00022366,95686.0,95685.0,0.321764]
[1739332080519,0.00022366,95686.0,95685.0,0.316764]
[1739332080693,0.00022366,95686.0,95685.0,0.306764]
[1739332081103,0.00022366,95686.0,95685.0,0.316764]
[1739332081669,0.00022366,95686.0,95685.0,0.321764]
[1739332082159,0.00022366,95686.0,95685.0,0.316764]
[1739332082312,0.00022366,95686.0,95685.0,0.306764]
[1739332082744,0.00022366,95686.0,95685.0,0.321764]
[1739332083116,0.00022366,95686.0,95685.0,0.316764]
[1739332083317,0.00022366,95686.0,95685.0,0.320764]
[1739332083743,0.00022366,95686.0,95685.0,0.316764]
[1739332083946,0.00022366,95686.0,95685.0,0.306764]
[1739332084117,0.00022366,95686.0,95685.0,0.314764]
[1739332084712,0.00022366,95686.0,95685.0,0.306764]
[1739332085023,0.00022366,95686.0,95685.0,0.321764]
[1739332085202,0.00022366,95686.0,95685.0,0.316764]
[1739332085420,0.00022366,95686.0,95685.0,0.306764]
[1739332085655,0.00022366,95686.0,95685.0,0.318764]
[1739332085902,0.00022366,95686.0,95685.0,0.008]
[1739332086347,0.00022366,95686.0,95685.0,0.013]
[1739332086580,0.19360689,95686.0,95685.0,0.008]
[1739332086795,0.15829197,95686.0,95685.0,0.008]
[1739332087043,0.156767,95683.0,95682.0,0.09343937]
[1739332087275,0.1580734,95683.0,95682.0,0.09343937]
[1739332087518,0.156767,95683.0,95682.0,0.09343937]
[1739332088868,0.21442258,95683.0,95682.0,0.10243937]
[1739332089077,0.25927065,95683.0,95682.0,0.10243937]
[1739332089488,0.25927065,95683.0,95682.0,0.10254587]
[1739332089690,0.25927065,95683.0,95682.0,0.10754587]
[1739332090123,0.25927065,95683.0,95682.0,0.10254587]
[1739332090529,0.25927065,95683.0,95682.0,0.09354587]
[1739332090730,0.26127065,95683.0,95682.0,0.09354587]
[1739332091315,0.25927065,95683.0,95682.0,0.0001065]
[1739332091534,0.26127065,95683.0,95682.0,0.0001065]
[1739332092134,0.25821236,95683.0,95682.0,0.0001065]
[1739332092597,0.25616625,95683.0,95682.0,0.0001065]
[1739332096369,0.25416625,95683.0,95682.0,0.0001065]
[1739332096880,0.25616625,95683.0,95682.0,0.0001065]
[1739332098090,0.40616625,95683.0,95682.0,0.0001065]
[1739332098505,0.30677,95681.0,95680.0,1e-06]
[1739332098716,0.40927365,95681.0,95680.0,1e-06]
[1739332098925,0.2050073,95681.0,95680.0,1e-06]
[1739332099132,0.25927365,95681.0,95680.0,1e-06]
[1739332100027,0.26527365,95681.0,95680.0,1e-06]
[1739332100241,0.26527365,95681.0,95668.0,0.0001065]
[1739332100242,0.15679,95669.0,95668.0,0.0001065]
[1739332100445,0.25929365,95669.0,95668.0,0.0001065]
[1739332102008,0.26429365,95669.0,95668.0,0.0011065]
[1739332102381,0.27129365,95669.0,95668.0,0.0021065]
[1739332103447,0.59689365,95669.0,95668.0,0.0021065]
[1739332104831,0.6145022,95669.0,95668.0,0.0021065]
[1739332108388,0.6145022,95669.0,95626.0,0.156859]
[1739332108389,0.156857,95628.0,95627.0,0.0001066]
[1739332108642,0.15642173,95628.0,95627.0,0.0001066]
[1739332109067,0.157729,95628.0,95627.0,0.0001066]
[1739332109281,0.26023265,95628.0,95627.0,0.0001066]
[1739332109451,0.25892538,95628.0,95627.0,0.0001066]
[1739332109985,0.25892538,95628.0,95627.0,0.0021066]
[1739332110626,0.209129,95635.0,95627.0,0.0071066]
[1739332110917,0.10250365,95635.0,95627.0,0.0071066]